[Event "Titled Tuesday Blitz October 31 Late 2023"]
[White "KorolDimitriy75"]
[Black "Seletsky, Grigory"]
[BlackFideId "14112191"]
[WhiteElo "2352"]
[BlackElo "2463"]
[Result "0-1"]
[Round "4"]
[TimeControl "180+1"]
[Date "2023.10.31"]
[WhiteClock "0:00:00"]
[BlackClock "0:00:40"]
[Board "136"]

1. d4 {[%clk 0:03:00]}  Nc6 {[%clk 0:02:57]} 2. Nf3 {[%clk 0:02:59]}  d5 {[%clk 0:02:56]} 3. c4 {[%clk 0:02:59]}  e6 {[%clk 0:02:54]} 4. Nc3 {[%clk 0:02:57]}  Nf6 {[%clk 0:02:54]} 5. cxd5 {[%clk 0:02:53]}  Nxd5 {[%clk 0:02:48]} 6. e4 {[%clk 0:02:53]}  Nxc3 {[%clk 0:02:48]} 7. bxc3 {[%clk 0:02:54]}  Be7 {[%clk 0:02:48]} 8. Bd3 {[%clk 0:02:52]}  O-O {[%clk 0:02:48]} 9. O-O {[%clk 0:02:49]}  b6 {[%clk 0:02:48]} 10. Qe2 {[%clk 0:02:43]}  Bb7 {[%clk 0:02:48]} 11. Rd1 {[%clk 0:02:35]}  Na5 {[%clk 0:02:49]} 12. Bf4 {[%clk 0:02:34]}  Re8 {[%clk 0:02:44]} 13. h3 {[%clk 0:02:29]}  Qc8 {[%clk 0:02:43]} 14. Rac1 {[%clk 0:02:27]}  c5 {[%clk 0:02:43]} 15. Ne5 {[%clk 0:01:55]}  Bf8 {[%clk 0:01:58]} 16. Qh5 {[%clk 0:01:32]}  g6 {[%clk 0:01:57]} 17. Qh4 {[%clk 0:01:31]}  f5 {[%clk 0:01:53]} 18. Re1 {[%clk 0:01:15]}  fxe4 {[%clk 0:01:35]} 19. Bxe4 {[%clk 0:01:13]}  Bxe4 {[%clk 0:01:35]} 20. Rxe4 {[%clk 0:01:13]}  Bg7 {[%clk 0:01:32]} 21. Ng4 {[%clk 0:00:55]}  Rf8 {[%clk 0:01:17]} 22. Be5 {[%clk 0:00:53]}  Nc6 {[%clk 0:01:07]} 23. Bxg7 {[%clk 0:00:52]}  Kxg7 {[%clk 0:01:07]} 24. Rce1 {[%clk 0:00:47]}  cxd4 {[%clk 0:01:02]} 25. Rxe6 {[%clk 0:00:28]}  Rf7 {[%clk 0:01:00]} 26. cxd4 {[%clk 0:00:23]}  Qd7 {[%clk 0:00:59]} 27. R1e4 {[%clk 0:00:14]}  Raf8 {[%clk 0:00:51]} 28. d5 {[%clk 0:00:05]}  Qxd5 {[%clk 0:00:48]} 29. Qh6+ {[%clk 0:00:05]}  Kg8 {[%clk 0:00:47]} 30. Re8 {[%clk 0:00:05]}  Qd1+ {[%clk 0:00:44]} 31. Kh2 {[%clk 0:00:05]}  Qd6+ {[%clk 0:00:44]} 32. Kg1 {[%clk 0:00:04]}  Rxe8 {[%clk 0:00:44]} 33. Rxe8+ {[%clk 0:00:03]}  Rf8 {[%clk 0:00:44]} 34. Re3 {[%clk 0:00:00]}  Nd4 {[%clk 0:00:40]} 0-1


[Site "https://www.chess.com"]

[Event "Titled Tuesday Blitz October 31 Late 2023"]
[White "Palacio,Igor Da Paz"]
[Black "Kawuma, Patrick"]
[WhiteFideId "2121140"]
[BlackFideId "10000127"]
[WhiteElo "2236"]
[BlackElo "2403"]
[Result "1-0"]
[Round "4"]
[TimeControl "180+1"]
[Date "2023.10.31"]
[WhiteClock "0:00:02"]
[BlackClock "0:00:04"]
[Board "139"]

1. e4 {[%clk 0:03:00]}  e6 {[%clk 0:02:56]} 2. d4 {[%clk 0:02:59]}  d5 {[%clk 0:02:56]} 3. Nd2 {[%clk 0:03:00]}  dxe4 {[%clk 0:02:56]} 4. Nxe4 {[%clk 0:03:01]}  Nd7 {[%clk 0:02:57]} 5. Nf3 {[%clk 0:03:00]}  Ngf6 {[%clk 0:02:58]} 6. Nxf6+ {[%clk 0:02:58]}  Nxf6 {[%clk 0:02:58]} 7. Bd3 {[%clk 0:02:59]}  c5 {[%clk 0:02:58]} 8. dxc5 {[%clk 0:02:59]}  Bxc5 {[%clk 0:02:58]} 9. O-O {[%clk 0:02:59]}  O-O {[%clk 0:02:58]} 10. c3 {[%clk 0:02:56]}  Qb6 {[%clk 0:02:57]} 11. Qe2 {[%clk 0:02:56]}  Bd7 {[%clk 0:02:55]} 12. Bg5 {[%clk 0:02:54]}  Rfd8 {[%clk 0:02:11]} 13. Ne5 {[%clk 0:02:45]}  Be8 {[%clk 0:02:10]} 14. Ng4 {[%clk 0:01:48]}  Rxd3 {[%clk 0:01:55]} 15. Nxf6+ {[%clk 0:01:47]}  gxf6 {[%clk 0:01:55]} 16. Bxf6 {[%clk 0:01:47]}  Bb5 {[%clk 0:01:34]} 17. c4 {[%clk 0:01:33]}  Bxc4 {[%clk 0:00:57]} 18. Qg4+ {[%clk 0:01:32]}  Kf8 {[%clk 0:00:58]} 19. Qxc4 {[%clk 0:01:25]}  Rd5 {[%clk 0:00:53]} 20. Qg4 {[%clk 0:01:08]}  Rf5 {[%clk 0:00:48]} 21. Qg7+ {[%clk 0:01:04]}  Ke8 {[%clk 0:00:48]} 22. Qh8+ {[%clk 0:00:59]}  Bf8 {[%clk 0:00:44]} 23. Rad1 {[%clk 0:00:55]}  Qc5 {[%clk 0:00:33]} 24. Rc1 {[%clk 0:00:37]}  Qb6 {[%clk 0:00:20]} 25. Bg7 {[%clk 0:00:24]}  Qb4 {[%clk 0:00:19]} 26. Bf6 {[%clk 0:00:06]}  Qf4 {[%clk 0:00:13]} 27. Bg7 {[%clk 0:00:03]}  Qb4 {[%clk 0:00:11]} 28. Bxf8 {[%clk 0:00:03]}  Qxf8 {[%clk 0:00:11]} 29. Qxf8+ {[%clk 0:00:02]}  Kxf8 {[%clk 0:00:11]} 30. Rc7 {[%clk 0:00:03]}  Rb5 {[%clk 0:00:11]} 31. b3 {[%clk 0:00:03]}  Rd8 {[%clk 0:00:11]} 32. Rfc1 {[%clk 0:00:03]}  Rd2 {[%clk 0:00:10]} 33. R7c2 {[%clk 0:00:03]}  Rd7 {[%clk 0:00:08]} 34. Kf1 {[%clk 0:00:04]}  Ke7 {[%clk 0:00:08]} 35. g3 {[%clk 0:00:04]}  a5 {[%clk 0:00:08]} 36. Rc7 {[%clk 0:00:04]}  Rd5 {[%clk 0:00:06]} 37. Rxd7+ {[%clk 0:00:04]}  Kxd7 {[%clk 0:00:06]} 38. Ke2 {[%clk 0:00:03]}  h5 {[%clk 0:00:07]} 39. Rd1 {[%clk 0:00:02]}  Rxd1 {[%clk 0:00:05]} 40. Kxd1 {[%clk 0:00:03]}  Kd6 {[%clk 0:00:05]} 41. Kd2 {[%clk 0:00:04]}  Ke5 {[%clk 0:00:05]} 42. Ke3 {[%clk 0:00:04]}  Kf5 {[%clk 0:00:04]} 43. h3 {[%clk 0:00:04]}  h4 {[%clk 0:00:04]} 44. g4+ {[%clk 0:00:03]}  Ke5 {[%clk 0:00:05]} 45. f4+ {[%clk 0:00:04]}  Kd5 {[%clk 0:00:05]} 46. Kd3 {[%clk 0:00:03]}  b5 {[%clk 0:00:05]} 47. a3 {[%clk 0:00:03]}  b4 {[%clk 0:00:04]} 48. axb4 {[%clk 0:00:02]}  axb4 {[%clk 0:00:04]} 49. Ke3 {[%clk 0:00:02]}  f6 {[%clk 0:00:03]} 50. g5 {[%clk 0:00:02]}  fxg5 {[%clk 0:00:04]} 51. fxg5 {[%clk 0:00:02]}  Ke5 {[%clk 0:00:05]} 52. Kf3 {[%clk 0:00:01]}  Kf5 {[%clk 0:00:05]} 53. g6 {[%clk 0:00:02]}  Kxg6 {[%clk 0:00:05]} 54. Kg4 {[%clk 0:00:03]}  Kf6 {[%clk 0:00:04]} 55. Kxh4 {[%clk 0:00:03]}  Kf5 {[%clk 0:00:05]} 56. Kg3 {[%clk 0:00:03]}  Ke4 {[%clk 0:00:05]} 57. h4 {[%clk 0:00:02]}  Kd3 {[%clk 0:00:02]} 58. h5 {[%clk 0:00:02]}  Kc3 {[%clk 0:00:03]} 59. h6 {[%clk 0:00:03]}  Kxb3 {[%clk 0:00:04]} 60. h7 {[%clk 0:00:04]}  Ka2 {[%clk 0:00:04]} 61. h8=Q {[%clk 0:00:04]}  b3 {[%clk 0:00:04]} 62. Qa8+ {[%clk 0:00:04]}  Kb1 {[%clk 0:00:04]} 63. Qe4+ {[%clk 0:00:03]}  Ka2 {[%clk 0:00:04]} 64. Qxe6 {[%clk 0:00:03]}  Kb2 {[%clk 0:00:04]} 65. Qe2+ {[%clk 0:00:04]}  Ka1 {[%clk 0:00:05]} 66. Qa6+ {[%clk 0:00:03]}  Kb1 {[%clk 0:00:05]} 67. Qf1+ {[%clk 0:00:02]}  Ka2 {[%clk 0:00:05]} 68. Qa6+ {[%clk 0:00:02]}  Kb1 {[%clk 0:00:05]} 69. Qa3 {[%clk 0:00:01]}  b2 {[%clk 0:00:05]} 70. Kf2 {[%clk 0:00:01]}  Kc2 {[%clk 0:00:05]} 71. Qa4+ {[%clk 0:00:01]}  Kc1 {[%clk 0:00:05]} 72. Qc4+ {[%clk 0:00:01]}  Kd2 {[%clk 0:00:05]} 73. Qd4+ {[%clk 0:00:01]}  Kc1 {[%clk 0:00:05]} 74. Qc3+ {[%clk 0:00:01]}  Kb1 {[%clk 0:00:05]} 75. Ke2 {[%clk 0:00:02]}  Ka2 {[%clk 0:00:04]} 76. Qa5+ {[%clk 0:00:03]}  Kb1 {[%clk 0:00:04]} 77. Kd3 {[%clk 0:00:02]}  Kc1 {[%clk 0:00:04]} 78. Qe1# {[%clk 0:00:02]} 1-0


[Site "https://www.chess.com"]

[Event "Titled Tuesday Blitz October 31 Late 2023"]
[White "De Souza, Cristiano Gomes"]
[Black "Todorovic, Bojan"]
[WhiteFideId "2151758"]
[BlackFideId "917087"]
[WhiteElo "2233"]
[BlackElo "2401"]
[Result "1-0"]
[Round "4"]
[TimeControl "180+1"]
[Date "2023.10.31"]
[WhiteClock "0:00:12"]
[BlackClock "0:00:04"]
[Board "140"]

1. d4 {[%clk 0:03:00]}  Nf6 {[%clk 0:02:58]} 2. c4 {[%clk 0:03:00]}  g6 {[%clk 0:02:57]} 3. Nc3 {[%clk 0:03:00]}  Bg7 {[%clk 0:02:56]} 4. e4 {[%clk 0:03:00]}  O-O {[%clk 0:02:55]} 5. Nf3 {[%clk 0:03:01]}  d6 {[%clk 0:02:54]} 6. Be2 {[%clk 0:03:01]}  c5 {[%clk 0:02:53]} 7. O-O {[%clk 0:03:01]}  Nc6 {[%clk 0:02:53]} 8. d5 {[%clk 0:03:02]}  Na5 {[%clk 0:02:52]} 9. h3 {[%clk 0:02:56]}  e5 {[%clk 0:02:51]} 10. a3 {[%clk 0:02:50]}  b6 {[%clk 0:02:49]} 11. b4 {[%clk 0:02:49]}  Nb7 {[%clk 0:02:48]} 12. Be3 {[%clk 0:02:47]}  Bd7 {[%clk 0:02:34]} 13. Nd2 {[%clk 0:02:45]}  cxb4 {[%clk 0:02:27]} 14. axb4 {[%clk 0:02:44]}  a5 {[%clk 0:02:24]} 15. bxa5 {[%clk 0:02:39]}  Nxa5 {[%clk 0:02:09]} 16. Nb5 {[%clk 0:02:38]}  Bxb5 {[%clk 0:02:03]} 17. cxb5 {[%clk 0:02:38]}  Nd7 {[%clk 0:02:03]} 18. Nc4 {[%clk 0:02:36]}  Nxc4 {[%clk 0:02:01]} 19. Bxc4 {[%clk 0:02:36]}  Nc5 {[%clk 0:02:00]} 20. Qc2 {[%clk 0:02:33]}  Rc8 {[%clk 0:01:49]} 21. f3 {[%clk 0:02:28]}  Qh4 {[%clk 0:01:43]} 22. Bf2 {[%clk 0:02:07]}  Qg5 {[%clk 0:01:42]} 23. Qc1 {[%clk 0:02:03]}  Qxc1 {[%clk 0:01:30]} 24. Rfxc1 {[%clk 0:02:02]}  Bh6 {[%clk 0:01:30]} 25. Rc2 {[%clk 0:01:59]}  f5 {[%clk 0:01:30]} 26. exf5 {[%clk 0:01:55]}  gxf5 {[%clk 0:01:27]} 27. Ra7 {[%clk 0:01:49]}  e4 {[%clk 0:01:22]} 28. Bd4 {[%clk 0:01:42]}  Nd3 {[%clk 0:01:01]} 29. Bxb6 {[%clk 0:01:08]}  Ne1 {[%clk 0:00:47]} 30. Re2 {[%clk 0:00:50]}  Rxc4 {[%clk 0:00:35]} 31. Rxe1 {[%clk 0:00:50]}  Rfc8 {[%clk 0:00:34]} 32. fxe4 {[%clk 0:00:47]}  fxe4 {[%clk 0:00:34]} 33. Be3 {[%clk 0:00:42]}  Bxe3+ {[%clk 0:00:27]} 34. Rxe3 {[%clk 0:00:41]}  Rb4 {[%clk 0:00:17]} 35. Rg3+ {[%clk 0:00:39]}  Kh8 {[%clk 0:00:15]} 36. Rgg7 {[%clk 0:00:31]}  Rxb5 {[%clk 0:00:15]} 37. Rxh7+ {[%clk 0:00:30]}  Kg8 {[%clk 0:00:15]} 38. Rag7+ {[%clk 0:00:30]}  Kf8 {[%clk 0:00:16]} 39. Rd7 {[%clk 0:00:29]}  Kg8 {[%clk 0:00:14]} 40. Rhg7+ {[%clk 0:00:28]}  Kh8 {[%clk 0:00:13]} 41. Rge7 {[%clk 0:00:26]}  Rxd5 {[%clk 0:00:12]} 42. Rxe4 {[%clk 0:00:26]}  Rg8 {[%clk 0:00:12]} 43. Ree7 {[%clk 0:00:24]}  Rc8 {[%clk 0:00:08]} 44. Re6 {[%clk 0:00:19]}  Rd1+ {[%clk 0:00:07]} 45. Kh2 {[%clk 0:00:19]}  d5 {[%clk 0:00:07]} 46. Red6 {[%clk 0:00:18]}  Rc5 {[%clk 0:00:06]} 47. Ra7 {[%clk 0:00:16]}  Rc8 {[%clk 0:00:05]} 48. Ra5 {[%clk 0:00:13]}  d4 {[%clk 0:00:05]} 49. Rad5 {[%clk 0:00:12]}  Rc4 {[%clk 0:00:05]} 50. Rg5 {[%clk 0:00:12]}  Rc8 {[%clk 0:00:04]} 51. Rh6# {[%clk 0:00:12]} 1-0


[Site "https://www.chess.com"]

[Event "Titled Tuesday Blitz October 31 Late 2023"]
[White "Lukey, Stephen G"]
[Black "el_sporco"]
[WhiteFideId "4300386"]
[WhiteElo "2233"]
[BlackElo "2405"]
[Result "0-1"]
[Round "4"]
[TimeControl "180+1"]
[Date "2023.10.31"]
[WhiteClock "0:00:00"]
[BlackClock "0:00:13"]
[Board "147"]

1. d4 {[%clk 0:03:00]}  Nf6 {[%clk 0:02:58]} 2. c4 {[%clk 0:03:00]}  e6 {[%clk 0:02:59]} 3. Nf3 {[%clk 0:03:00]}  d5 {[%clk 0:02:59]} 4. g3 {[%clk 0:02:58]}  Be7 {[%clk 0:02:45]} 5. Bg2 {[%clk 0:02:58]}  O-O {[%clk 0:02:46]} 6. O-O {[%clk 0:02:59]}  dxc4 {[%clk 0:02:46]} 7. Nc3 {[%clk 0:02:56]}  Nc6 {[%clk 0:02:43]} 8. e4 {[%clk 0:02:55]}  Nb4 {[%clk 0:02:41]} 9. Ne5 {[%clk 0:02:43]}  b6 {[%clk 0:02:04]} 10. a3 {[%clk 0:02:33]}  Nd3 {[%clk 0:02:01]} 11. Nc6 {[%clk 0:02:15]}  Qe8 {[%clk 0:01:58]} 12. e5 {[%clk 0:02:10]}  Nd5 {[%clk 0:01:54]} 13. Nxd5 {[%clk 0:02:03]}  exd5 {[%clk 0:01:53]} 14. Bxd5 {[%clk 0:02:02]}  Bh3 {[%clk 0:01:48]} 15. Nxe7+ {[%clk 0:01:47]}  Qxe7 {[%clk 0:01:49]} 16. Bxc4 {[%clk 0:01:19]}  Bxf1 {[%clk 0:01:24]} 17. Qxf1 {[%clk 0:01:17]}  Nxc1 {[%clk 0:01:24]} 18. Rxc1 {[%clk 0:01:14]}  Rad8 {[%clk 0:01:22]} 19. Qd3 {[%clk 0:00:57]}  c5 {[%clk 0:01:10]} 20. d5 {[%clk 0:00:45]}  Qxe5 {[%clk 0:01:08]} 21. b4 {[%clk 0:00:42]}  b5 {[%clk 0:01:02]} 22. Bxb5 {[%clk 0:00:39]}  Rxd5 {[%clk 0:01:01]} 23. Qf3 {[%clk 0:00:23]}  cxb4 {[%clk 0:00:48]} 24. Bc4 {[%clk 0:00:23]}  Rd6 {[%clk 0:00:35]} 25. Ba2 {[%clk 0:00:20]}  Rf6 {[%clk 0:00:34]} 26. Qb3 {[%clk 0:00:17]}  Qe2 {[%clk 0:00:28]} 27. Rf1 {[%clk 0:00:12]}  Rf3 {[%clk 0:00:29]} 28. Qd5 {[%clk 0:00:11]}  Rxa3 {[%clk 0:00:20]} 29. Bc4 {[%clk 0:00:10]}  Qe7 {[%clk 0:00:16]} 30. Rd1 {[%clk 0:00:09]}  g6 {[%clk 0:00:14]} 31. h4 {[%clk 0:00:08]}  a5 {[%clk 0:00:13]} 32. Rd4 {[%clk 0:00:08]}  Ra1+ {[%clk 0:00:13]} 33. Kg2 {[%clk 0:00:08]}  Re1 {[%clk 0:00:13]} 34. Rf4 {[%clk 0:00:06]}  Re5 {[%clk 0:00:13]} 35. Qd4 {[%clk 0:00:06]}  Kg7 {[%clk 0:00:12]} 36. Rg4 {[%clk 0:00:05]}  f6 {[%clk 0:00:12]} 37. h5 {[%clk 0:00:04]}  Qb7+ {[%clk 0:00:12]} 38. Kh2 {[%clk 0:00:03]}  Rxh5+ {[%clk 0:00:13]} 39. Rh4 {[%clk 0:00:01]}  Rxh4+ {[%clk 0:00:13]} 40. Qxh4 {[%clk 0:00:00]}  Qf3 {[%clk 0:00:13]} 0-1


[Site "https://www.chess.com"]

[Event "Titled Tuesday Blitz October 31 Late 2023"]
[White "SergioMoralesG"]
[Black "Sarkar, Justin"]
[BlackFideId "2010011"]
[WhiteElo "2367"]
[BlackElo "2220"]
[Result "1-0"]
[Round "4"]
[TimeControl "180+1"]
[Date "2023.10.31"]
[WhiteClock "0:00:09"]
[BlackClock "0:00:00"]
[Board "149"]

1. d4 {[%clk 0:03:00]}  Nf6 {[%clk 0:02:40]} 2. c4 {[%clk 0:02:59]}  g6 {[%clk 0:02:40]} 3. Nc3 {[%clk 0:02:59]}  d6 {[%clk 0:02:41]} 4. e4 {[%clk 0:02:58]}  Bg7 {[%clk 0:02:38]} 5. Nf3 {[%clk 0:02:58]}  O-O {[%clk 0:02:36]} 6. Be2 {[%clk 0:02:58]}  e5 {[%clk 0:02:36]} 7. Be3 {[%clk 0:02:58]}  Ng4 {[%clk 0:02:32]} 8. Bg5 {[%clk 0:02:58]}  f6 {[%clk 0:02:32]} 9. Bh4 {[%clk 0:02:59]}  Nc6 {[%clk 0:02:31]} 10. d5 {[%clk 0:02:58]}  Ne7 {[%clk 0:02:31]} 11. Nd2 {[%clk 0:02:58]}  Nh6 {[%clk 0:02:25]} 12. f3 {[%clk 0:02:58]}  g5 {[%clk 0:02:08]} 13. Bf2 {[%clk 0:02:58]}  f5 {[%clk 0:02:07]} 14. O-O {[%clk 0:02:58]}  f4 {[%clk 0:01:54]} 15. c5 {[%clk 0:02:53]}  Nf7 {[%clk 0:01:53]} 16. Nc4 {[%clk 0:02:48]}  h5 {[%clk 0:01:48]} 17. cxd6 {[%clk 0:02:48]}  Nxd6 {[%clk 0:01:44]} 18. Nxd6 {[%clk 0:02:43]}  cxd6 {[%clk 0:01:43]} 19. Rc1 {[%clk 0:02:36]}  Rf6 {[%clk 0:01:00]} 20. Nb5 {[%clk 0:02:31]}  Bd7 {[%clk 0:01:00]} 21. Qb3 {[%clk 0:02:12]}  g4 {[%clk 0:00:44]} 22. Nc7 {[%clk 0:01:55]}  Rc8 {[%clk 0:00:34]} 23. Qxb7 {[%clk 0:01:49]}  Rb8 {[%clk 0:00:32]} 24. Qa6 {[%clk 0:01:19]}  Rxb2 {[%clk 0:00:29]} 25. Ne6 {[%clk 0:01:16]}  Bxe6 {[%clk 0:00:16]} 26. dxe6 {[%clk 0:01:17]}  Rg6 {[%clk 0:00:15]} 27. Rb1 {[%clk 0:00:50]}  Rxb1 {[%clk 0:00:09]} 28. Rxb1 {[%clk 0:00:49]}  g3 {[%clk 0:00:07]} 29. Bxa7 {[%clk 0:00:47]}  gxh2+ {[%clk 0:00:06]} 30. Kh1 {[%clk 0:00:47]}  Kh7 {[%clk 0:00:01]} 31. Rb8 {[%clk 0:00:36]}  Qc7 {[%clk 0:00:01]} 32. Rb1 {[%clk 0:00:16]}  Qc2 {[%clk 0:00:00]} 33. Rf1 {[%clk 0:00:09]} 1-0


[Site "https://www.chess.com"]

[Event "Titled Tuesday Blitz October 31 Late 2023"]
[White "Kazakov, Mikhail"]
[Black "Mariia89"]
[WhiteFideId "14102749"]
[WhiteElo "2360"]
[BlackElo "2185"]
[Result "1-0"]
[Round "4"]
[TimeControl "180+1"]
[Date "2023.10.31"]
[WhiteClock "0:00:19"]
[BlackClock "0:00:00"]
[Board "150"]

1. d4 {[%clk 0:02:52]}  Nf6 {[%clk 0:02:58]} 2. c4 {[%clk 0:02:51]}  c5 {[%clk 0:02:59]} 3. d5 {[%clk 0:02:51]}  b5 {[%clk 0:02:59]} 4. Qc2 {[%clk 0:02:50]}  b4 {[%clk 0:02:59]} 5. e4 {[%clk 0:02:48]}  d6 {[%clk 0:02:59]} 6. Nf3 {[%clk 0:02:48]}  g6 {[%clk 0:02:59]} 7. Be2 {[%clk 0:02:42]}  Bg7 {[%clk 0:02:59]} 8. O-O {[%clk 0:02:42]}  O-O {[%clk 0:03:00]} 9. h3 {[%clk 0:02:41]}  a5 {[%clk 0:02:54]} 10. Bf4 {[%clk 0:02:37]}  Nh5 {[%clk 0:02:35]} 11. Bh2 {[%clk 0:02:34]}  a4 {[%clk 0:02:35]} 12. a3 {[%clk 0:02:32]}  Qa5 {[%clk 0:02:28]} 13. e5 {[%clk 0:02:23]}  Bf5 {[%clk 0:02:23]} 14. Qd2 {[%clk 0:02:16]}  Bxb1 {[%clk 0:02:21]} 15. Raxb1 {[%clk 0:02:11]}  dxe5 {[%clk 0:02:11]} 16. Nxe5 {[%clk 0:02:01]}  Nf6 {[%clk 0:02:06]} 17. Bf3 {[%clk 0:01:52]}  Ra7 {[%clk 0:02:00]} 18. Qe3 {[%clk 0:01:50]}  Nbd7 {[%clk 0:01:51]} 19. Nc6 {[%clk 0:01:48]}  Qb6 {[%clk 0:01:49]} 20. axb4 {[%clk 0:01:40]}  Raa8 {[%clk 0:01:20]} 21. b5 {[%clk 0:01:29]}  Rfe8 {[%clk 0:01:12]} 22. Rfe1 {[%clk 0:01:25]}  e6 {[%clk 0:01:06]} 23. d6 {[%clk 0:01:21]}  Bf8 {[%clk 0:00:52]} 24. Ne7+ {[%clk 0:01:16]}  Bxe7 {[%clk 0:00:52]} 25. dxe7 {[%clk 0:01:16]}  Rac8 {[%clk 0:00:48]} 26. Red1 {[%clk 0:01:09]}  Rxe7 {[%clk 0:00:46]} 27. Bc6 {[%clk 0:01:01]}  Nb8 {[%clk 0:00:42]} 28. Qg5 {[%clk 0:00:34]}  Nxc6 {[%clk 0:00:19]} 29. Qxf6 {[%clk 0:00:24]}  Ree8 {[%clk 0:00:04]} 30. bxc6 {[%clk 0:00:21]}  h5 {[%clk 0:00:00]} 31. Be5 {[%clk 0:00:19]} 1-0


[Site "https://www.chess.com"]

[Event "Titled Tuesday Blitz October 31 Late 2023"]
[White "Padalka, Artem"]
[Black "Wisniowski, Natalie"]
[WhiteFideId "14118637"]
[BlackFideId "30929261"]
[WhiteElo "2330"]
[BlackElo "2166"]
[Result "1-0"]
[Round "4"]
[TimeControl "180+1"]
[Date "2023.10.31"]
[WhiteClock "0:00:08"]
[BlackClock "0:00:00"]
[Board "151"]

1. e4 {[%clk 0:02:58]}  c5 {[%clk 0:02:59]} 2. b4 {[%clk 0:02:58]}  cxb4 {[%clk 0:02:58]} 3. a3 {[%clk 0:02:57]}  bxa3 {[%clk 0:02:55]} 4. Bxa3 {[%clk 0:02:57]}  d6 {[%clk 0:02:54]} 5. d4 {[%clk 0:02:57]}  e6 {[%clk 0:02:53]} 6. Nf3 {[%clk 0:02:56]}  Nc6 {[%clk 0:02:53]} 7. Bd3 {[%clk 0:02:56]}  Nf6 {[%clk 0:02:52]} 8. Nbd2 {[%clk 0:02:51]}  Be7 {[%clk 0:02:52]} 9. O-O {[%clk 0:02:44]}  O-O {[%clk 0:02:52]} 10. Qe2 {[%clk 0:02:39]}  Bd7 {[%clk 0:02:44]} 11. e5 {[%clk 0:02:35]}  dxe5 {[%clk 0:02:42]} 12. dxe5 {[%clk 0:02:34]}  Nd5 {[%clk 0:02:41]} 13. Qe4 {[%clk 0:02:32]}  g6 {[%clk 0:02:37]} 14. Bxe7 {[%clk 0:02:28]}  Qxe7 {[%clk 0:02:34]} 15. Nc4 {[%clk 0:02:24]}  Rfd8 {[%clk 0:02:10]} 16. h4 {[%clk 0:02:09]}  Ncb4 {[%clk 0:02:03]} 17. Nd6 {[%clk 0:01:54]}  Bc6 {[%clk 0:01:59]} 18. Ng5 {[%clk 0:01:38]}  f5 {[%clk 0:01:27]} 19. exf6 {[%clk 0:01:17]}  Qxd6 {[%clk 0:01:26]} 20. f7+ {[%clk 0:00:37]}  Kh8 {[%clk 0:01:22]} 21. Nxe6 {[%clk 0:00:37]}  Nxd3 {[%clk 0:01:06]} 22. cxd3 {[%clk 0:00:32]}  Nf6 {[%clk 0:01:00]} 23. Qe3 {[%clk 0:00:27]}  Qd5 {[%clk 0:00:55]} 24. f3 {[%clk 0:00:17]}  Nd7 {[%clk 0:00:46]} 25. Nxd8 {[%clk 0:00:15]}  Rxd8 {[%clk 0:00:45]} 26. Qe8+ {[%clk 0:00:15]}  Nf8 {[%clk 0:00:43]} 27. Qe7 {[%clk 0:00:15]}  Qd4+ {[%clk 0:00:37]} 28. Kh1 {[%clk 0:00:15]}  Qd6 {[%clk 0:00:27]} 29. Qxd6 {[%clk 0:00:09]}  Rxd6 {[%clk 0:00:27]} 30. Rxa7 {[%clk 0:00:10]}  Rf6 {[%clk 0:00:23]} 31. Ra8 {[%clk 0:00:09]}  Rxf7 {[%clk 0:00:23]} 32. Re1 {[%clk 0:00:10]}  Kg7 {[%clk 0:00:23]} 33. Re5 {[%clk 0:00:09]}  Rd7 {[%clk 0:00:20]} 34. Ree8 {[%clk 0:00:07]}  Rf7 {[%clk 0:00:19]} 35. Red8 {[%clk 0:00:07]}  Rf5 {[%clk 0:00:14]} 36. d4 {[%clk 0:00:07]}  Rd5 {[%clk 0:00:13]} 37. Rxd5 {[%clk 0:00:06]}  Bxd5 {[%clk 0:00:13]} 38. Rd8 {[%clk 0:00:07]}  Bc6 {[%clk 0:00:12]} 39. d5 {[%clk 0:00:06]}  Bb5 {[%clk 0:00:12]} 40. Rb8 {[%clk 0:00:07]}  Ba6 {[%clk 0:00:12]} 41. d6 {[%clk 0:00:07]}  Bb5 {[%clk 0:00:10]} 42. Rxb7+ {[%clk 0:00:06]}  Bd7 {[%clk 0:00:11]} 43. Rb5 {[%clk 0:00:07]}  Kf6 {[%clk 0:00:11]} 44. Rb7 {[%clk 0:00:07]}  Ke6 {[%clk 0:00:11]} 45. Rb6 {[%clk 0:00:07]}  h6 {[%clk 0:00:09]} 46. Kh2 {[%clk 0:00:08]}  Nh7 {[%clk 0:00:10]} 47. Kg3 {[%clk 0:00:09]}  Nf6 {[%clk 0:00:10]} 48. Ra6 {[%clk 0:00:08]}  Ne8 {[%clk 0:00:11]} 49. Ra8 {[%clk 0:00:07]}  Nxd6 {[%clk 0:00:11]} 50. Rh8 {[%clk 0:00:07]}  h5 {[%clk 0:00:11]} 51. Kf4 {[%clk 0:00:08]}  Kf6 {[%clk 0:00:10]} 52. g4 {[%clk 0:00:07]}  hxg4 {[%clk 0:00:10]} 53. fxg4 {[%clk 0:00:08]}  Nf7 {[%clk 0:00:10]} 54. Rf8 {[%clk 0:00:08]}  Kg7 {[%clk 0:00:10]} 55. Ra8 {[%clk 0:00:08]}  Be6 {[%clk 0:00:11]} 56. Ra7 {[%clk 0:00:09]}  Bd5 {[%clk 0:00:11]} 57. h5 {[%clk 0:00:08]}  gxh5 {[%clk 0:00:11]} 58. gxh5 {[%clk 0:00:08]}  Kh6 {[%clk 0:00:10]} 59. Kg4 {[%clk 0:00:08]}  Be6+ {[%clk 0:00:10]} 60. Kh4 {[%clk 0:00:08]}  Kg7 {[%clk 0:00:09]} 61. Ra6 {[%clk 0:00:08]}  Bd5 {[%clk 0:00:09]} 62. Rb6 {[%clk 0:00:08]}  Be6 {[%clk 0:00:09]} 63. Rxe6 {[%clk 0:00:08]}  Kh7 {[%clk 0:00:08]} 64. Ra6 {[%clk 0:00:09]}  Kg7 {[%clk 0:00:08]} 65. Kg4 {[%clk 0:00:09]}  Nh6+ {[%clk 0:00:05]} 66. Kg5 {[%clk 0:00:09]}  Nf7+ {[%clk 0:00:05]} 67. Kf4 {[%clk 0:00:10]}  Nh6 {[%clk 0:00:04]} 68. Rg6+ {[%clk 0:00:09]}  Kh7 {[%clk 0:00:04]} 69. Kg5 {[%clk 0:00:09]}  Nf7+ {[%clk 0:00:05]} 70. Kf6 {[%clk 0:00:09]}  Nd6 {[%clk 0:00:04]} 71. Rg7+ {[%clk 0:00:09]}  Kh8 {[%clk 0:00:04]} 72. Re7 {[%clk 0:00:09]}  Nc4 {[%clk 0:00:00]} 73. Kg6 {[%clk 0:00:08]} 1-0


[Site "https://www.chess.com"]

[Event "Titled Tuesday Blitz October 31 Late 2023"]
[White "rikchessmx"]
[Black "miraitrunks"]
[WhiteElo "2292"]
[BlackElo "2080"]
[Result "1-0"]
[Round "4"]
[TimeControl "180+1"]
[Date "2023.10.31"]
[WhiteClock "0:02:39"]
[BlackClock "0:02:36"]
[Board "156"]

1. d4 {[%clk 0:03:00]}  Nf6 {[%clk 0:02:59]} 2. c4 {[%clk 0:03:01]}  g6 {[%clk 0:02:59]} 3. Nc3 {[%clk 0:03:02]}  d5 {[%clk 0:02:59]} 4. e4 {[%clk 0:03:02]}  dxe4 {[%clk 0:02:59]} 5. f3 {[%clk 0:03:03]}  e3 {[%clk 0:02:58]} 6. Bxe3 {[%clk 0:03:02]}  Bg7 {[%clk 0:02:59]} 7. Qd2 {[%clk 0:03:02]}  O-O {[%clk 0:02:59]} 8. O-O-O {[%clk 0:03:02]}  Nc6 {[%clk 0:03:00]} 9. g4 {[%clk 0:03:02]}  e5 {[%clk 0:02:59]} 10. d5 {[%clk 0:03:02]}  Nd4 {[%clk 0:02:59]} 11. h4 {[%clk 0:02:59]}  h5 {[%clk 0:02:59]} 12. gxh5 {[%clk 0:02:53]}  Nxh5 {[%clk 0:03:00]} 13. Bg5 {[%clk 0:02:50]}  Qd6 {[%clk 0:02:51]} 14. Ne4 {[%clk 0:02:48]}  Qb6 {[%clk 0:02:36]} 15. c5 {[%clk 0:02:39]} 1-0


[Site "https://www.chess.com"]